{"text_format":"1","workbook":"xlsx","n_sheets":7,"sheets":["الاسماء","اليومية","Rep1","Rep2","Rep3","reb4","Contract"],"not_rendered":{"charts":0,"images":3,"macros":1,"external_links":0,"defined_names":3,"comments":0,"pivot_tables":0},"unopened":[],"bounds":{"document_bytes":16777216,"sheet_cells":100000,"rows_first":2000,"rows_last":500,"rows_between":2000,"halvings":0,"cell_chars":16384,"cell_head_chars":4096},"cells_cut":0,"cells_raw":0,"read":"whole","date_system":"1900"}

{"sheet":"الاسماء","index":0,"n_rows":24,"n_cols":19,"rows_kept":24,"cut":false,"hidden":false,"merged":[[0,0,0,18]]}
[]
["م","رقم عقد الأيجار","أسم المستأجر","رقم الهوية/ الأقامة","جهة العمل / الكفيل","الجنسية","الوحدة","الشقة","وصف الشقة","رقم التليفون","قيمة الايجار السنوي","فترة الأيجار/ يوم","فترة الايجار بالشهر","قمية الأيجار عن الفترة","تاريخ بداية العقد م","تاريخ بداية العقد هـ","تاريخ الأستحقاق م","تاريخ الاستحقاق هـ","حالة الأيجار"]
[1,101,"عميدنا / الدغيدي",1234567890,"أوفيسنا","مصري","شقة",13,"الدور ( 3 ) مبنى رقم ( 2 )",501234567,25000,{"$f":"IF($M3<>\"\",VLOOKUP($M3,{\"شهري\",\"30 \";\"ربع سنوي\",\"90\";\"نصف سنوي\",\"180\";\"سنوي\",\"360\"},2,0),\"\")","v":"90"},"ربع سنوي",{"$f":"IF(K3<>\"\",K3/360*L3,\"\")","v":6250},"2012-10-16",{"$f":"IF(O3<>\"\",TEXT(O3,\"b2YYYY/mM/dD\"),\"\")","v":"1433/12/01"},"2014-07-08",{"$f":"IF(Q3<>\"\",TEXT(Q3,\"b2YYYY/mM/dD\"),\"\")","v":"1435/09/11"},{"$f":"IF(Q3<>\"\",IF(Q3>TODAY(),\"غير مستحقة\",\"مستحقة\"),\"\")","v":"مستحقة"}]
[2,102,"أستاذنا الحاج / مجدي يونس",1234567891,"أوفيسنا","مصري","شقة",15,"الدور ( 3 ) مبنى رقم ( 2 )",501234567,25000,{"$f":"IF($M4<>\"\",VLOOKUP($M4,{\"شهري\",\"30 \";\"ربع سنوي\",\"90\";\"نصف سنوي\",\"180\";\"سنوي\",\"360\"},2,0),\"\")","v":"90"},"ربع سنوي",{"$f":"IF(K4<>\"\",K4/360*L4,\"\")","v":6250},"2009-11-18",{"$f":"IF(O4<>\"\",TEXT(O4,\"b2YYYY/mM/dD\"),\"\")","v":"1430/12/01"},"2014-10-07",{"$f":"IF(Q4<>\"\",TEXT(Q4,\"b2YYYY/mM/dD\"),\"\")","v":"1435/12/13"},{"$f":"IF(Q4<>\"\",IF(Q4>TODAY(),\"غير مستحقة\",\"مستحقة\"),\"\")","v":"مستحقة"}]
[3,103,"معلمنا /عبدالله باقشير",1234567892,"أوفيسنا","اليمن","شقة",10,"الدور ( 3 ) مبنى رقم ( 2 )",501234569,25000,{"$f":"IF($M5<>\"\",VLOOKUP($M5,{\"شهري\",\"30 \";\"ربع سنوي\",\"90\";\"نصف سنوي\",\"180\";\"سنوي\",\"360\"},2,0),\"\")","v":"90"},"ربع سنوي",6250,"2010-01-16","1431/02/01",{"$f":"DATE(YEAR(O5),MONTH(O5)+(L5/30),DAY(O5))","v":"2010-04-16"},"1431/05/03","مستحقة"]
[4,104,"أستاذنا/ عباد نصار",1234567893,"أوفيسنا","اليمن","شقة",5,"الدور ( 2 ) مبنى رقم ( 2 )",501234570,25000,{"$f":"IF($M6<>\"\",VLOOKUP($M6,{\"شهري\",\"30 \";\"ربع سنوي\",\"90\";\"نصف سنوي\",\"180\";\"سنوي\",\"360\"},2,0),\"\")","v":"180"},"نصف سنوي",12500,"2011-06-02",{"$f":"IF(O6<>\"\",TEXT(O6,\"b2YYYY/mM/dD\"),\"\")","v":"1432/07/01"},"2011-12-02","1433/01/07","مستحقة"]
[5,105,"أستاذ/ أبوحنين",1234567894,"أوفيسنا","الجزائر","شقة",16,"الدور ( 4 ) مبنى رقم ( 2 )",501234571,20000,{"$f":"IF($M7<>\"\",VLOOKUP($M7,{\"شهري\",\"30 \";\"ربع سنوي\",\"90\";\"نصف سنوي\",\"180\";\"سنوي\",\"360\"},2,0),\"\")","v":"180"},"نصف سنوي",10000,"2011-10-28","1432/12/01","2012-04-28","1433/06/07","مستحقة"]
[6,106,"أستاذ/ حمادة عمر",1234567895,"أوفيسنا","مصري","شقة",18,"الدور ( 5 ) مبنى رقم ( 2 )",501234572,20000,{"$f":"IF($M8<>\"\",VLOOKUP($M8,{\"شهري\",\"30 \";\"ربع سنوي\",\"90\";\"نصف سنوي\",\"180\";\"سنوي\",\"360\"},2,0),\"\")","v":"180"},"نصف سنوي",10000,"2011-11-27","1433/01/02","2013-11-03","1434/12/30","مستحقة"]
[7,107,"أستاذ / سعيد بيرم",1234567896,"أوفيسنا","مصري","شقة",17,"الدور ( 5 ) مبنى رقم ( 2 )",501234573,20000,{"$f":"IF($M9<>\"\",VLOOKUP($M9,{\"شهري\",\"30 \";\"ربع سنوي\",\"90\";\"نصف سنوي\",\"180\";\"سنوي\",\"360\"},2,0),\"\")","v":"180"},"نصف سنوي",10000,"2011-12-25","1433/01/30","2013-11-30","1435/01/27","مستحقة"]
[8,108,"أستاذ/ سعد عابد",1234567897,"أوفيسنا","مصري","شقة",13,"الدور ( 4 ) مبنى رقم ( 2 )",501234574,15000,{"$f":"IF($M10<>\"\",VLOOKUP($M10,{\"شهري\",\"30 \";\"ربع سنوي\",\"90\";\"نصف سنوي\",\"180\";\"سنوي\",\"360\"},2,0),\"\")","v":"30 "},"شهري",1250,"2011-12-25","1433/01/30","2012-01-25","1433/03/02","مستحقة"]
[9,109,"أستاذ/ عباس السماوي",1234567898,"أوفيسنا","مصري","شقة",14,"الدور ( 4 ) مبنى رقم ( 2 )",501234575,15000,{"$f":"IF($M11<>\"\",VLOOKUP($M11,{\"شهري\",\"30 \";\"ربع سنوي\",\"90\";\"نصف سنوي\",\"180\";\"سنوي\",\"360\"},2,0),\"\")","v":"90"},"ربع سنوي",3750,"2011-12-25","1433/01/30","2012-03-25","1433/05/03","مستحقة"]
[10,110,"استاذ/ شوقي ربيع",1234567899,"أوفيسنا","الجزائر","شقة",10,"الدور ( 3 ) مبنى رقم ( 1 )",501234576,18000,{"$f":"IF($M12<>\"\",VLOOKUP($M12,{\"شهري\",\"30 \";\"ربع سنوي\",\"90\";\"نصف سنوي\",\"180\";\"سنوي\",\"360\"},2,0),\"\")","v":"90"},"ربع سنوي",4500,"2011-12-25","1433/01/30","2012-03-25","1433/05/03","مستحقة"]
[11,111,"أستاذ/ خالد القدس",1234567900,"أوفيسنا","السودان","شقة",18,"الدور ( 5 ) مبنى رقم ( 1 )",501234577,18000,{"$f":"IF($M13<>\"\",VLOOKUP($M13,{\"شهري\",\"30 \";\"ربع سنوي\",\"90\";\"نصف سنوي\",\"180\";\"سنوي\",\"360\"},2,0),\"\")","v":"90"},"ربع سنوي",4500,"2011-12-25","1433/01/30","2012-03-25","1433/05/03","مستحقة"]
[12,112,"أستاذ/ جمال عبدالسميع",1234567901,"أوفيسنا","مصري","شقة",6,"الدور ( 2 ) مبنى رقم ( 1 )",501234578,20000,{"$f":"IF($M14<>\"\",VLOOKUP($M14,{\"شهري\",\"30 \";\"ربع سنوي\",\"90\";\"نصف سنوي\",\"180\";\"سنوي\",\"360\"},2,0),\"\")","v":"90"},"ربع سنوي",5000,"2013-01-12","1434/03/01","2013-04-12","1434/06/02","مستحقة"]
[13,113,"أستاذ/ احمد فؤاد",1234567902,"أوفيسنا","مصري","شقة",13,"الدور ( 4 ) مبنى رقم ( 1 )",501234579,15000,{"$f":"IF($M15<>\"\",VLOOKUP($M15,{\"شهري\",\"30 \";\"ربع سنوي\",\"90\";\"نصف سنوي\",\"180\";\"سنوي\",\"360\"},2,0),\"\")","v":"90"},"ربع سنوي",3750,"2013-01-12","1434/03/01","2013-04-12","1434/06/02","مستحقة"]
[14,114,"أستاذ/ قنديل الصياد",1234567903,"أوفيسنا","مصري","شقة",11,"الدور ( 3 ) مبنى رقم ( 1 )",501234580,15000,{"$f":"IF($M16<>\"\",VLOOKUP($M16,{\"شهري\",\"30 \";\"ربع سنوي\",\"90\";\"نصف سنوي\",\"180\";\"سنوي\",\"360\"},2,0),\"\")","v":"180"},"نصف سنوي",7500,"2013-01-12","1434/03/01","2013-07-12","1434/09/05","مستحقة"]
[15,115,"استاذ/ مجمود الأسيوطي",1234567904,"أوفيسنا","مصري","شقة",16,"الدور ( 4 ) مبنى رقم ( 1 )",501234581,18000,{"$f":"IF($M17<>\"\",VLOOKUP($M17,{\"شهري\",\"30 \";\"ربع سنوي\",\"90\";\"نصف سنوي\",\"180\";\"سنوي\",\"360\"},2,0),\"\")","v":"90"},"ربع سنوي",4500,"2013-01-12","1434/03/01","2013-04-12","1434/06/02","مستحقة"]
[16,116,"أستاذ/ ابراهيم ابو ليلة",1234567905,"أوفيسنا","مصري","شقة",3,"الدور ( 1 ) مبنى رقم ( 1 )",501234582,15000,{"$f":"IF($M18<>\"\",VLOOKUP($M18,{\"شهري\",\"30 \";\"ربع سنوي\",\"90\";\"نصف سنوي\",\"180\";\"سنوي\",\"360\"},2,0),\"\")","v":"90"},"ربع سنوي",3750,"2013-04-11","1434/06/01","2013-07-11","1434/09/04","مستحقة"]
[17,117,"أستاذ/ جلال الجمال",1234567906,"أوفيسنا","مصري","شقة",9," مبنى رقم ( 2 )",501234583,18000,{"$f":"IF($M19<>\"\",VLOOKUP($M19,{\"شهري\",\"30 \";\"ربع سنوي\",\"90\";\"نصف سنوي\",\"180\";\"سنوي\",\"360\"},2,0),\"\")","v":"180"},"نصف سنوي",9000,"2013-04-11","1434/06/01","2013-10-11","1434/12/07","مستحقة"]
[18,118,"أستاذة / أم عبدالله",1234567907,"أوفيسنا","مصري","شقة",14,"الدور ( 4 ) مبنى رقم ( 1 )",501234584,15000,{"$f":"IF($M20<>\"\",VLOOKUP($M20,{\"شهري\",\"30 \";\"ربع سنوي\",\"90\";\"نصف سنوي\",\"180\";\"سنوي\",\"360\"},2,0),\"\")","v":"180"},"نصف سنوي",7500,"2013-04-11","1434/06/01","2013-10-11","1434/12/07","مستحقة"]
[19,119,"أستاذ/ حمادة الباشا",1234567908,"أوفيسنا","مصري","شقة",17,"الدور ( 5 ) مبنى رقم ( 1 )",501234585,15000,{"$f":"IF($M21<>\"\",VLOOKUP($M21,{\"شهري\",\"30 \";\"ربع سنوي\",\"90\";\"نصف سنوي\",\"180\";\"سنوي\",\"360\"},2,0),\"\")","v":"180"},"نصف سنوي",7500,"2013-04-11","1434/06/01","2013-10-11","1434/12/07","مستحقة"]
[20,120,"أستاذ/ طلعت محمد حسن",1234567909,"أوفيسنا","مصري","شقة",20,"الدور ( 6 ) مبنى رقم ( 1 )",501234586,18000,{"$f":"IF($M22<>\"\",VLOOKUP($M22,{\"شهري\",\"30 \";\"ربع سنوي\",\"90\";\"نصف سنوي\",\"180\";\"سنوي\",\"360\"},2,0),\"\")","v":"180"},"نصف سنوي",9000,"2013-04-11","1434/06/01","2013-10-11","1434/12/07","مستحقة"]
[21,121,"أستاذ/ الشهابي",1234567910,"أوفيسنا","اليمن","شقة",2,"الدور ( 1 ) مبنى رقم ( 1 )",501234587,20000,{"$f":"IF($M23<>\"\",VLOOKUP($M23,{\"شهري\",\"30 \";\"ربع سنوي\",\"90\";\"نصف سنوي\",\"180\";\"سنوي\",\"360\"},2,0),\"\")","v":"180"},"نصف سنوي",10000,"2013-04-11","1434/06/01","2013-10-11","1434/12/07","مستحقة"]
[22,122,"العبد الفقير لله / ضاحي الغريب",1234567911,"أوفيسنا","مصري","غرفة",7,"البدروم - مبني رقم (1)",501234588,10000,{"$f":"IF($M24<>\"\",VLOOKUP($M24,{\"شهري\",\"30 \";\"ربع سنوي\",\"90\";\"نصف سنوي\",\"180\";\"سنوي\",\"360\"},2,0),\"\")","v":"90"},"ربع سنوي",2500,"2013-04-11","1434/06/01","2013-07-11","1434/09/04","مستحقة"]

{"sheet":"اليومية","index":1,"n_rows":1064,"n_cols":21,"rows_kept":1064,"cut":false,"hidden":false,"merged":[[6,5,6,6],[0,5,0,6],[0,0,0,1],[1,0,1,1],[2,1,2,5],[5,5,5,6],[8,6,9,6],[8,0,9,0],[8,1,9,1],[8,2,9,2],[8,3,9,3],[8,4,8,5]]}
[]
[]
[null,null,null,null,null,null,null,null,null,null,null,null,null,null,null,null,null,null,null,null,"ايراد نقدى"]
[null,null,null,null,null,null,null,null,null,null,null,null,null,null,null,null,null,null,null,null,"ايراد بشيكات"]
["حوالات بنكية :",{"$f":"SUMIF(C11:C1064,\"*تحويل*\",F11:F1064)","v":7000},null,"إيـداعـات بـنـكـية :",{"$f":"SUMIF(C11:C1064,\"*ايداع*\",F11:F1064)","v":226300},"الرصيد :",{"$f":"B8-F7-E5-B5","v":14},null,null,null,null,null,null,null,null,null,null,null,null,null,"ايداع شيك"]
["ايرادات نقدية :",{"$f":"SUMIF(C11:C1064,\"*ايراد نقدى*\",E11:E1064)","v":178227},null,"جملة مصروفات الصيانة :",{"$f":"SUMIF(C11:C1064,\"*مصروفات*\",F11:F1064)","v":13623},"جمله المصروفات :",null,null,null,null,null,null,null,null,null,null,null,null,null,null,"ايداع نقدى"]
["ايرادات بشيكات :",{"$f":"SUMIF(C11:C1064,\"*ايراد بشيكات*\",E11:E1064)","v":74500},null,"جملة الرواتب المدفوعة :",{"$f":"SUMIF(C11:C1064,\"*صرف رواتب*\",F11:F1064)","v":3200},{"$f":"SUM(E6:E8)","v":19413},null,null,null,null,null,null,null,null,null,null,null,null,null,null,"تحويل للحساب"]
["جملة الايرادات :",{"$f":"B6+B7","v":252727},null,"تصفيات خروج مستاجرين :",{"$f":"SUMIF(C12:C1065,\"*خروج مستأجر*\",F12:F1065)","v":2590},"رصيد مرحل :",2000,null,null,null,null,null,null,null,null,null,null,null,null,null,"مصروفات "]
["التاريخ ","رقم السند","نوع السند","البيان","العملية",null,"الرصيد"]
[null,null,null,null,"مدين ","دائن"]
["18-9-1434",472,"ايراد نقدى","شقة رقم 18 عمارة 1",20000,null,{"$f":"IF(AND(E11=\"\",F11=\"\"),\"\",G8+F11-E11)","v":-18000}]
["18-9-1434","بدون","مصروفات","كهرباء مصاعد العمارتين",null,525,{"$f":"IF(AND(E12=\"\",F12=\"\"),\"\",G11+F12-E12)","v":-17475}]
["20-9-1434",473,"ايراد نقدى","شقة رقم 18 عمارة 2",777,null,{"$f":"IF(AND(E13=\"\",F13=\"\"),\"\",G12+F13-E13)","v":-18252}]
["20-9-1434",474,"ايراد نقدى","شقة رقم 14 عمارة 2",17500,null,{"$f":"IF(AND(E14=\"\",F14=\"\"),\"\",G13+F14-E14)","v":-35752}]
["22-9-1434",267,"مصروفات","ف كهرباء شراء لمبات ",null,60,-35692]
["25-9-1434",463,"خروج مستأجر","تصفية حساب شقة 16 ع 2",null,1300,-34392]
["25-9-1434",477,"ايراد نقدى","شقة رقم 5 عمارة 1",17000,null,-51392]
["25-9-1434",476,"ايراد بشيكات","شقة رقم 10 عمارة 1",17500,null,-68892]
["25-9-1434","بدون","ايداع شيك","شقة رقم 10 عمارة1 رقم 50002",null,17500,-51392]
["25-9-1434",464,"مصروفات","مصروفات شغل يد + سباكة وكهرباء",null,265,-51127]
["25-9-1434",3358,"مصروفات","رول دهان",null,15,-51112]
["25-9-1434",3357,"مصروفات","مواد دهان",null,339,-50773]
["25-9-1434",465,"خروج مستأجر","تصفية تأمين شقة 15 ع 2",null,1290,-49483]
["27-9-1434","بدون","ايداع نقدى","دفعة من الايجارات على حسابكم بالراجحى",null,40000,-9483]
["5-10-1434",481,"ايراد نقدى","ايجار شقة رقم 20 ع 2 مدة 53 يوم",5000,null,-14483]
["5-10-1434",480,"ايراد نقدى","غرفة مبنى رقم 2 ",1600,null,-16083]
["5-10-1434",478,"ايراد نقدى","ايجار شقة رقم 15 ع رقم 2",17500,null,-33583]
["5-10-1434",479,"ايراد نقدى","تأمين شقة رقم 15 ع رقم 2",2000,null,-35583]
["5-10-1434",467,"صرف رواتب","راتب س عن شهر رمضان",null,800,-34783]
["5-10-1434",466,"صرف رواتب","راتب ص عن شهر رمضان",null,800,-33983]
["5-10-1434",468,"تحويل للحساب","حوالتين 6 الف + الف من شقة رقم 15 ع 2 ",null,7000,-26983]
["5-10-1434",469,"مصروفات ","شفط البيارة عمارة رقم 1 شهر رمضان / يوليو",null,1400,-25583]
["5-10-1434",470,"مصروفات ","شفط البيارة عمارة رقم 2 شهر رمضان / يوليو",null,640,-24943]
["7-10-1434",483,"ايراد نقدى","شقة رقم 11 الدور 3 مبنى رقم 2",8750,null,-33693]
["7-10-1434",482,"ايراد نقدى","شقة رقم 20 الدور 6 مبنى رقم 1",17000,null,-50693]
["7-10-1434",3400,"مصروفات ","ف دهانات الجزيرة ",null,1030,-49663]
["7-10-1434",6717,"مصروفات ","مؤسسه باغلف  كالونات",null,75,-49588]
["7-10-1434",6754,"مصروفات ","مؤسسه باغلف  جبس + فرشة",null,20,-49568]
["7-10-1434",472,"مصروفات ","دهان شقة رقم 16 + 17 عمارة رقم 2",null,1600,-47968]
["7-10-1434",471,"مصروفات ","تصليح ودهان الباب شقة 16 عمارة رقم 2",null,365,-47603]
["7-10-1434",6786,"مصروفات ","رول + شكرتون عمارة 2",null,19,-47584]
["7-10-1434",474,"مصروفات ","شغل بلاط + شغل كهرباء ع ( 2 )",null,120,-47464]
["12-10-1434",484,"ايراد بشيكات","تأمين شقة رقم 18 ع رقم 2",2000,null,-49464]
["12-10-1434",485,"ايراد بشيكات","ايجار شقة رقم 18 ع رقم 2",20000,null,-69464]
["12-10-1434","بدون","ايداع شيك","ايداع شيك رقم 231 ايجار وتأمين شقة رقم 18 ع رقم 2",null,22000,-47464]
["12-10-1434","بدون","ايداع نقدى","دفعة من الايجارات على حسابكم بالراجحى",null,42000,-5464]
["12-10-1434",4921,"مصروفات ","تسليك قاعدة حمام بالاسمنت ع 2 شقة 5",null,50,-5414]
["16-10-1434",196,"ايراد نقدى","ايجار شقة رقم 8 ع رقم 2 لمدة 3 شهور سند قديم تكملة الايجار",8500,null,-13914]
["22-10-1434",487,"ايراد بشيكات","ايجار شقة رقم 1 ع رقم 1 شيك رقم 11 الراجحى ",17500,null,-31414]
["22-10-1434",489,"ايراد نقدى","ايجار شقة رقم 12 ع رقم 2 لمدة 75 يوم ",7000,null,-38414]
["25-10-1434",490,"ايراد نقدى","ايجار غرفة بعمارة 2",1600,null,-40014]
["25-10-1434","بدون","مصروفات ","فواتير الكهرباء 3 شقق + مصاعد ",null,922,-39092]
["26-10-1434","بدون","ايداع شيك","ايجار شقة رقم 1 ع رقم 1 شيك رقم 11 الراجحى ",null,17500,-21592]
["26-10-1434","بدون","ايداع نقدى","دفعة من الايجارات على حسابكم بالراجحى",null,20000,-1592]
["27-10-1434",491,"ايراد نقدى","تامين شقة رقم 16 عمارة رقم 2",2000,null,-3592]
["27-10-1434",492,"ايراد نقدى","ايجار شقة رقم 16 عمارة رقم 2",17500,null,-21092]
["27-10-1434","بدون","مصروفات ","فاتورة مياه عمارة 1 ",null,1097,-19995]
["28-10-1434",879,"مصروفات ","تجديد اقامة س+ رسوم بريد",null,450,-19545]
["2-11-1434",252,"مصروفات ","اصلاح مكيف + غسيل غرفة نواز عمارة 1",null,150,-19395]
["2-11-1434",475,"صرف رواتب","راتب شهر شوال 1434 هـ ن",null,800,-18595]
["2-11-1434",476,"صرف رواتب","راتب شهر شوال 1434 هـ  س",null,800,-17795]
["2-11-1434",477,"مصروفات ","سند اصلاح بانيو + كرسى حمام + سيلكون شقة 20 عمارة 2",null,256,-17539]
["7-11-1434",493,"ايراد نقدى","ايجار شقة رقم 19 عمارة رقم 2",17000,null,-34539]
["7-11-1434",478,"مصروفات ","شفط البيارة عمارة رقم 2 شهر اغسطس",null,800,-33739]
["7-11-1434",479,"مصروفات ","شفط البيارة عمارة رقم1 شهر اغسطس",null,1400,-32339]
["10-11-1434",3642,"مصروفات ","فاتورة الجزيرة للدهان 2",null,975,-31364]
["10-11-1434",480,"مصروفات ","اصلاح مكيف شقة 8 عمارة 2 + دهان شقة 20 عمارة 2 كاملة + مجلس شقة 4 عمارة 1",null,1050,-30314]
["10-11-1434",494,"ايراد نقدى","ايجار شقة 6 عمارة 2 ",17500,null,-47814]
["10-11-1434",495,"ايراد بشيكات","ايجار شقة 2 عمارة 2 شيك رقم 101 ",17500,null,-65314]
["10-11-1434","بدون","ايداع نقدى","دفعة من الايجارات على حسابكم بالراجحى",null,49800,-15514]
["10-11-1434","بدون","ايداع شيك","شيك رقم 101 عن شقة رقم 2 عمارة رقم 2",null,17500,1986]
[null,null,null,null,null,null,""]
[null,null,null,null,null,null,""]
[null,null,null,null,null,null,""]
[null,null,null,null,null,null,""]
[null,null,null,null,null,null,""]
[null,null,null,null,null,null,""]
[null,null,null,null,null,null,{"$f":"IF(AND(E78=\"\",F78=\"\"),\"\",G77+F78-E78)","v":""}]
[null,null,null,null,null,null,""]
[null,null,null,null,null,null,""]
[null,null,null,null,null,null,""]
[null,null,null,null,null,null,""]
[null,null,null,null,null,null,""]
[null,null,null,null,null,null,""]
[null,null,null,null,null,null,""]
[null,null,null,null,null,null,""]
[null,null,null,null,null,null,""]
[null,null,null,null,null,null,""]
[null,null,null,null,null,null,""]
[null,null,null,null,null,null,""]
[null,null,null,null,null,null,""]
[null,null,null,null,null,null,""]
[null,null,null,null,null,null,""]
[null,null,null,null,null,null,""]
[null,null,null,null,null,null,""]
[null,null,null,null,null,null,""]
[null,null,null,null,null,null,""]
[null,null,null,null,null,null,""]
[null,null,null,null,null,null,""]
[null,null,null,null,null,null,""]
[null,null,null,null,null,null,""]
[null,null,null,null,null,null,""]
[null,null,null,null,null,null,""]
[null,null,null,null,null,null,""]
[null,null,null,null,null,null,""]
[null,null,null,null,null,null,""]
[null,null,null,null,null,null,""]
[null,null,null,null,null,null,""]
[null,null,null,null,null,null,""]
[null,null,null,null,null,null,""]
[null,null,null,null,null,null,""]
[null,null,null,null,null,null,""]
[null,null,null,null,null,null,""]
[null,null,null,null,null,null,""]
[null,null,null,null,null,null,""]
[null,null,null,null,null,null,""]
[null,null,null,null,null,null,""]
[null,null,null,null,null,null,""]
[null,null,null,null,null,null,""]
[null,null,null,null,null,null,""]
[null,null,null,null,null,null,""]
[null,null,null,null,null,null,""]
[null,null,null,null,null,null,""]
[null,null,null,null,null,null,""]
[null,null,null,null,null,null,""]
[null,null,null,null,null,null,""]
[null,null,null,null,null,null,""]
[null,null,null,null,null,null,""]
[null,null,null,null,null,null,""]
[null,null,null,null,null,null,""]
[null,null,null,null,null,null,""]
[null,null,null,null,null,null,""]
[null,null,null,null,null,null,""]
[null,null,null,null,null,null,""]
[null,null,null,null,null,null,""]
[null,null,null,null,null,null,""]
[null,null,null,null,null,null,""]
[null,null,null,null,null,null,""]
[null,null,null,null,null,null,""]
[null,null,null,null,null,null,""]
[null,null,null,null,null,null,""]
[null,null,null,null,null,null,{"$f":"IF(AND(E142=\"\",F142=\"\"),\"\",G141+F142-E142)","v":""}]
[null,null,null,null,null,null,""]
[null,null,null,null,null,null,""]
[null,null,null,null,null,null,""]
[null,null,null,null,null,null,""]
[null,null,null,null,null,null,""]
[null,null,null,null,null,null,""]
[null,null,null,null,null,null,""]
[null,null,null,null,null,null,""]
[null,null,null,null,null,null,""]
[null,null,null,null,null,null,""]
[null,null,null,null,null,null,""]
[null,null,null,null,null,null,""]
[null,null,null,null,null,null,""]
[null,null,null,null,null,null,""]
[null,null,null,null,null,null,""]
[null,null,null,null,null,null,""]
[null,null,null,null,null,null,""]
[null,null,null,null,null,null,""]
[null,null,null,null,null,null,""]
[null,null,null,null,null,null,""]
[null,null,null,null,null,null,""]
[null,null,null,null,null,null,""]
[null,null,null,null,null,null,""]
[null,null,null,null,null,null,""]
[null,null,null,null,null,null,""]
[null,null,null,null,null,null,""]
[null,null,null,null,null,null,""]
[null,null,null,null,null,null,""]
[null,null,null,null,null,null,""]
[null,null,null,null,null,null,""]
[null,null,null,null,null,null,""]
[null,null,null,null,null,null,""]
[null,null,null,null,null,null,""]
[null,null,null,null,null,null,""]
[null,null,null,null,null,null,""]
[null,null,null,null,null,null,""]
[null,null,null,null,null,null,""]
[null,null,null,null,null,null,""]
[null,null,null,null,null,null,""]
[null,null,null,null,null,null,""]
[null,null,null,null,null,null,""]
[null,null,null,null,null,null,""]
[null,null,null,null,null,null,""]
[null,null,null,null,null,null,""]
[null,null,null,null,null,null,""]
[null,null,null,null,null,null,""]
[null,null,null,null,null,null,""]
[null,null,null,null,null,null,""]
[null,null,null,null,null,null,""]
[null,null,null,null,null,null,""]
[null,null,null,null,null,null,""]
[null,null,null,null,null,null,""]
[null,null,null,null,null,null,""]
[null,null,null,null,null,null,""]
[null,null,null,null,null,null,""]
[null,null,null,null,null,null,""]
[null,null,null,null,null,null,""]
[null,null,null,null,null,null,""]
[null,null,null,null,null,null,""]
[null,null,null,null,null,null,""]
[null,null,null,null,null,null,""]
[null,null,null,null,null,null,""]
[null,null,null,null,null,null,""]
[null,null,null,null,null,null,{"$f":"IF(AND(E206=\"\",F206=\"\"),\"\",G205+F206-E206)","v":""}]
[null,null,null,null,null,null,""]
[null,null,null,null,null,null,""]
[null,null,null,null,null,null,""]
[null,null,null,null,null,null,""]
[null,null,null,null,null,null,""]
[null,null,null,null,null,null,""]
[null,null,null,null,null,null,""]
[null,null,null,null,null,null,""]
[null,null,null,null,null,null,""]
[null,null,null,null,null,null,""]
[null,null,null,null,null,null,""]
[null,null,null,null,null,null,""]
[null,null,null,null,null,null,""]
[null,null,null,null,null,null,""]
[null,null,null,null,null,null,""]
[null,null,null,null,null,null,""]
[null,null,null,null,null,null,""]
[null,null,null,null,null,null,""]
[null,null,null,null,null,null,""]
[null,null,null,null,null,null,""]
[null,null,null,null,null,null,""]
[null,null,null,null,null,null,""]
[null,null,null,null,null,null,""]
[null,null,null,null,null,null,""]
[null,null,null,null,null,null,""]
[null,null,null,null,null,null,""]
[null,null,null,null,null,null,""]
[null,null,null,null,null,null,""]
[null,null,null,null,null,null,""]
[null,null,null,null,null,null,""]
[null,null,null,null,null,null,""]
[null,null,null,null,null,null,""]
[null,null,null,null,null,null,""]
[null,null,null,null,null,null,""]
[null,null,null,null,null,null,""]
[null,null,null,null,null,null,""]
[null,null,null,null,null,null,""]
[null,null,null,null,null,null,""]
[null,null,null,null,null,null,""]
[null,null,null,null,null,null,""]
[null,null,null,null,null,null,""]
[null,null,null,null,null,null,""]
[null,null,null,null,null,null,""]
[null,null,null,null,null,null,""]
[null,null,null,null,null,null,""]
[null,null,null,null,null,null,""]
[null,null,null,null,null,null,""]
[null,null,null,null,null,null,""]
[null,null,null,null,null,null,""]
[null,null,null,null,null,null,""]
[null,null,null,null,null,null,""]
[null,null,null,null,null,null,""]
[null,null,null,null,null,null,""]
[null,null,null,null,null,null,""]
[null,null,null,null,null,null,""]
[null,null,null,null,null,null,""]
[null,null,null,null,null,null,""]
[null,null,null,null,null,null,""]
[null,null,null,null,null,null,""]
[null,null,null,null,null,null,""]
[null,null,null,null,null,null,""]
[null,null,null,null,null,null,""]
[null,null,null,null,null,null,""]
[null,null,null,null,null,null,{"$f":"IF(AND(E270=\"\",F270=\"\"),\"\",G269+F270-E270)","v":""}]
[null,null,null,null,null,null,""]
[null,null,null,null,null,null,""]
[null,null,null,null,null,null,""]
[null,null,null,null,null,null,""]
[null,null,null,null,null,null,""]
[null,null,null,null,null,null,""]
[null,null,null,null,null,null,""]
[null,null,null,null,null,null,""]
[null,null,null,null,null,null,""]
[null,null,null,null,null,null,""]
[null,null,null,null,null,null,""]
[null,null,null,null,null,null,""]
[null,null,null,null,null,null,""]
[null,null,null,null,null,null,""]
[null,null,null,null,null,null,""]
[null,null,null,null,null,null,""]
[null,null,null,null,null,null,""]
[null,null,null,null,null,null,""]
[null,null,null,null,null,null,""]
[null,null,null,null,null,null,""]
[null,null,null,null,null,null,""]
[null,null,null,null,null,null,""]
[null,null,null,null,null,null,""]
[null,null,null,null,null,null,""]
[null,null,null,null,null,null,""]
[null,null,null,null,null,null,""]
[null,null,null,null,null,null,""]
[null,null,null,null,null,null,""]
[null,null,null,null,null,null,""]
[null,null,null,null,null,null,""]
[null,null,null,null,null,null,""]
[null,null,null,null,null,null,""]
[null,null,null,null,null,null,""]
[null,null,null,null,null,null,""]
[null,null,null,null,null,null,""]
[null,null,null,null,null,null,""]
[null,null,null,null,null,null,""]
[null,null,null,null,null,null,""]
[null,null,null,null,null,null,""]
[null,null,null,null,null,null,""]
[null,null,null,null,null,null,""]
[null,null,null,null,null,null,""]
[null,null,null,null,null,null,""]
[null,null,null,null,null,null,""]
[null,null,null,null,null,null,""]
[null,null,null,null,null,null,""]
[null,null,null,null,null,null,""]
[null,null,null,null,null,null,""]
[null,null,null,null,null,null,""]
[null,null,null,null,null,null,""]
[null,null,null,null,null,null,""]
[null,null,null,null,null,null,""]
[null,null,null,null,null,null,""]
[null,null,null,null,null,null,""]
[null,null,null,null,null,null,""]
[null,null,null,null,null,null,""]
[null,null,null,null,null,null,""]
[null,null,null,null,null,null,""]
[null,null,null,null,null,null,""]
[null,null,null,null,null,null,""]
[null,null,null,null,null,null,""]
[null,null,null,null,null,null,""]
[null,null,null,null,null,null,""]
[null,null,null,null,null,null,{"$f":"IF(AND(E334=\"\",F334=\"\"),\"\",G333+F334-E334)","v":""}]
[null,null,null,null,null,null,""]
[null,null,null,null,null,null,""]
[null,null,null,null,null,null,""]
[null,null,null,null,null,null,""]
[null,null,null,null,null,null,""]
[null,null,null,null,null,null,""]
[null,null,null,null,null,null,""]
[null,null,null,null,null,null,""]
[null,null,null,null,null,null,""]
[null,null,null,null,null,null,""]
[null,null,null,null,null,null,""]
[null,null,null,null,null,null,""]
[null,null,null,null,null,null,""]
[null,null,null,null,null,null,""]
[null,null,null,null,null,null,""]
[null,null,null,null,null,null,""]
[null,null,null,null,null,null,""]
[null,null,null,null,null,null,""]
[null,null,null,null,null,null,""]
[null,null,null,null,null,null,""]
[null,null,null,null,null,null,""]
[null,null,null,null,null,null,""]
[null,null,null,null,null,null,""]
[null,null,null,null,null,null,""]
[null,null,null,null,null,null,""]
[null,null,null,null,null,null,""]
[null,null,null,null,null,null,""]
[null,null,null,null,null,null,""]
[null,null,null,null,null,null,""]
[null,null,null,null,null,null,""]
[null,null,null,null,null,null,""]
[null,null,null,null,null,null,""]
[null,null,null,null,null,null,""]
[null,null,null,null,null,null,""]
[null,null,null,null,null,null,""]
[null,null,null,null,null,null,""]
[null,null,null,null,null,null,""]
[null,null,null,null,null,null,""]
[null,null,null,null,null,null,""]
[null,null,null,null,null,null,""]
[null,null,null,null,null,null,""]
[null,null,null,null,null,null,""]
[null,null,null,null,null,null,""]
[null,null,null,null,null,null,""]
[null,null,null,null,null,null,""]
[null,null,null,null,null,null,""]
[null,null,null,null,null,null,""]
[null,null,null,null,null,null,""]
[null,null,null,null,null,null,""]
[null,null,null,null,null,null,""]
[null,null,null,null,null,null,""]
[null,null,null,null,null,null,""]
[null,null,null,null,null,null,""]
[null,null,null,null,null,null,""]
[null,null,null,null,null,null,""]
[null,null,null,null,null,null,""]
[null,null,null,null,null,null,""]
[null,null,null,null,null,null,""]
[null,null,null,null,null,null,""]
[null,null,null,null,null,null,""]
[null,null,null,null,null,null,""]
[null,null,null,null,null,null,""]
[null,null,null,null,null,null,""]
[null,null,null,null,null,null,{"$f":"IF(AND(E398=\"\",F398=\"\"),\"\",G397+F398-E398)","v":""}]
[null,null,null,null,null,null,""]
[null,null,null,null,null,null,""]
[null,null,null,null,null,null,""]
[null,null,null,null,null,null,""]
[null,null,null,null,null,null,""]
[null,null,null,null,null,null,""]
[null,null,null,null,null,null,""]
[null,null,null,null,null,null,""]
[null,null,null,null,null,null,""]
[null,null,null,null,null,null,""]
[null,null,null,null,null,null,""]
[null,null,null,null,null,null,""]
[null,null,null,null,null,null,""]
[null,null,null,null,null,null,""]
[null,null,null,null,null,null,""]
[null,null,null,null,null,null,""]
[null,null,null,null,null,null,""]
[null,null,null,null,null,null,""]
[null,null,null,null,null,null,""]
[null,null,null,null,null,null,""]
[null,null,null,null,null,null,""]
[null,null,null,null,null,null,""]
[null,null,null,null,null,null,""]
[null,null,null,null,null,null,""]
[null,null,null,null,null,null,""]
[null,null,null,null,null,null,""]
[null,null,null,null,null,null,""]
[null,null,null,null,null,null,""]
[null,null,null,null,null,null,""]
[null,null,null,null,null,null,""]
[null,null,null,null,null,null,""]
[null,null,null,null,null,null,""]
[null,null,null,null,null,null,""]
[null,null,null,null,null,null,""]
[null,null,null,null,null,null,""]
[null,null,null,null,null,null,""]
[null,null,null,null,null,null,""]
[null,null,null,null,null,null,""]
[null,null,null,null,null,null,""]
[null,null,null,null,null,null,""]
[null,null,null,null,null,null,""]
[null,null,null,null,null,null,""]
[null,null,null,null,null,null,""]
[null,null,null,null,null,null,""]
[null,null,null,null,null,null,""]
[null,null,null,null,null,null,""]
[null,null,null,null,null,null,""]
[null,null,null,null,null,null,""]
[null,null,null,null,null,null,""]
[null,null,null,null,null,null,""]
[null,null,null,null,null,null,""]
[null,null,null,null,null,null,""]
[null,null,null,null,null,null,""]
[null,null,null,null,null,null,""]
[null,null,null,null,null,null,""]
[null,null,null,null,null,null,""]
[null,null,null,null,null,null,""]
[null,null,null,null,null,null,""]
[null,null,null,null,null,null,""]
[null,null,null,null,null,null,""]
[null,null,null,null,null,null,""]
[null,null,null,null,null,null,""]
[null,null,null,null,null,null,""]
[null,null,null,null,null,null,{"$f":"IF(AND(E462=\"\",F462=\"\"),\"\",G461+F462-E462)","v":""}]
[null,null,null,null,null,null,""]
[null,null,null,null,null,null,""]
[null,null,null,null,null,null,""]
[null,null,null,null,null,null,""]
[null,null,null,null,null,null,""]
[null,null,null,null,null,null,""]
[null,null,null,null,null,null,""]
[null,null,null,null,null,null,""]
[null,null,null,null,null,null,""]
[null,null,null,null,null,null,""]
[null,null,null,null,null,null,""]
[null,null,null,null,null,null,""]
[null,null,null,null,null,null,""]
[null,null,null,null,null,null,""]
[null,null,null,null,null,null,""]
[null,null,null,null,null,null,""]
[null,null,null,null,null,null,""]
[null,null,null,null,null,null,""]
[null,null,null,null,null,null,""]
[null,null,null,null,null,null,""]
[null,null,null,null,null,null,""]
[null,null,null,null,null,null,""]
[null,null,null,null,null,null,""]
[null,null,null,null,null,null,""]
[null,null,null,null,null,null,""]
[null,null,null,null,null,null,""]
[null,null,null,null,null,null,""]
[null,null,null,null,null,null,""]
[null,null,null,null,null,null,""]
[null,null,null,null,null,null,""]
[null,null,null,null,null,null,""]
[null,null,null,null,null,null,""]
[null,null,null,null,null,null,""]
[null,null,null,null,null,null,""]
[null,null,null,null,null,null,""]
[null,null,null,null,null,null,""]
[null,null,null,null,null,null,""]
[null,null,null,null,null,null,""]
[null,null,null,null,null,null,""]
[null,null,null,null,null,null,""]
[null,null,null,null,null,null,""]
[null,null,null,null,null,null,""]
[null,null,null,null,null,null,""]
[null,null,null,null,null,null,""]
[null,null,null,null,null,null,""]
[null,null,null,null,null,null,""]
[null,null,null,null,null,null,""]
[null,null,null,null,null,null,""]
[null,null,null,null,null,null,""]
[null,null,null,null,null,null,""]
[null,null,null,null,null,null,""]
[null,null,null,null,null,null,""]
[null,null,null,null,null,null,""]
[null,null,null,null,null,null,""]
[null,null,null,null,null,null,""]
[null,null,null,null,null,null,""]
[null,null,null,null,null,null,""]
[null,null,null,null,null,null,""]
[null,null,null,null,null,null,""]
[null,null,null,null,null,null,""]
[null,null,null,null,null,null,""]
[null,null,null,null,null,null,""]
[null,null,null,null,null,null,""]
[null,null,null,null,null,null,{"$f":"IF(AND(E526=\"\",F526=\"\"),\"\",G525+F526-E526)","v":""}]
[null,null,null,null,null,null,""]
[null,null,null,null,null,null,""]
[null,null,null,null,null,null,""]
[null,null,null,null,null,null,""]
[null,null,null,null,null,null,""]
[null,null,null,null,null,null,""]
[null,null,null,null,null,null,""]
[null,null,null,null,null,null,""]
[null,null,null,null,null,null,""]
[null,null,null,null,null,null,""]
[null,null,null,null,null,null,""]
[null,null,null,null,null,null,""]
[null,null,null,null,null,null,""]
[null,null,null,null,null,null,""]
[null,null,null,null,null,null,""]
[null,null,null,null,null,null,""]
[null,null,null,null,null,null,""]
[null,null,null,null,null,null,""]
[null,null,null,null,null,null,""]
[null,null,null,null,null,null,""]
[null,null,null,null,null,null,""]
[null,null,null,null,null,null,""]
[null,null,null,null,null,null,""]
[null,null,null,null,null,null,""]
[null,null,null,null,null,null,""]
[null,null,null,null,null,null,""]
[null,null,null,null,null,null,""]
[null,null,null,null,null,null,""]
[null,null,null,null,null,null,""]
[null,null,null,null,null,null,""]
[null,null,null,null,null,null,""]
[null,null,null,null,null,null,""]
[null,null,null,null,null,null,""]
[null,null,null,null,null,null,""]
[null,null,null,null,null,null,""]
[null,null,null,null,null,null,""]
[null,null,null,null,null,null,""]
[null,null,null,null,null,null,""]
[null,null,null,null,null,null,""]
[null,null,null,null,null,null,""]
[null,null,null,null,null,null,""]
[null,null,null,null,null,null,""]
[null,null,null,null,null,null,""]
[null,null,null,null,null,null,""]
[null,null,null,null,null,null,""]
[null,null,null,null,null,null,""]
[null,null,null,null,null,null,""]
[null,null,null,null,null,null,""]
[null,null,null,null,null,null,""]
[null,null,null,null,null,null,""]
[null,null,null,null,null,null,""]
[null,null,null,null,null,null,""]
[null,null,null,null,null,null,""]
[null,null,null,null,null,null,""]
[null,null,null,null,null,null,""]
[null,null,null,null,null,null,""]
[null,null,null,null,null,null,""]
[null,null,null,null,null,null,""]
[null,null,null,null,null,null,""]
[null,null,null,null,null,null,""]
[null,null,null,null,null,null,""]
[null,null,null,null,null,null,""]
[null,null,null,null,null,null,""]
[null,null,null,null,null,null,{"$f":"IF(AND(E590=\"\",F590=\"\"),\"\",G589+F590-E590)","v":""}]
[null,null,null,null,null,null,""]
[null,null,null,null,null,null,""]
[null,null,null,null,null,null,""]
[null,null,null,null,null,null,""]
[null,null,null,null,null,null,""]
[null,null,null,null,null,null,""]
[null,null,null,null,null,null,""]
[null,null,null,null,null,null,""]
[null,null,null,null,null,null,""]
[null,null,null,null,null,null,""]
[null,null,null,null,null,null,""]
[null,null,null,null,null,null,""]
[null,null,null,null,null,null,""]
[null,null,null,null,null,null,""]
[null,null,null,null,null,null,""]
[null,null,null,null,null,null,""]
[null,null,null,null,null,null,""]
[null,null,null,null,null,null,""]
[null,null,null,null,null,null,""]
[null,null,null,null,null,null,""]
[null,null,null,null,null,null,""]
[null,null,null,null,null,null,""]
[null,null,null,null,null,null,""]
[null,null,null,null,null,null,""]
[null,null,null,null,null,null,""]
[null,null,null,null,null,null,""]
[null,null,null,null,null,null,""]
[null,null,null,null,null,null,""]
[null,null,null,null,null,null,""]
[null,null,null,null,null,null,""]
[null,null,null,null,null,null,""]
[null,null,null,null,null,null,""]
[null,null,null,null,null,null,""]
[null,null,null,null,null,null,""]
[null,null,null,null,null,null,""]
[null,null,null,null,null,null,""]
[null,null,null,null,null,null,""]
[null,null,null,null,null,null,""]
[null,null,null,null,null,null,""]
[null,null,null,null,null,null,""]
[null,null,null,null,null,null,""]
[null,null,null,null,null,null,""]
[null,null,null,null,null,null,""]
[null,null,null,null,null,null,""]
[null,null,null,null,null,null,""]
[null,null,null,null,null,null,""]
[null,null,null,null,null,null,""]
[null,null,null,null,null,null,""]
[null,null,null,null,null,null,""]
[null,null,null,null,null,null,""]
[null,null,null,null,null,null,""]
[null,null,null,null,null,null,""]
[null,null,null,null,null,null,""]
[null,null,null,null,null,null,""]
[null,null,null,null,null,null,""]
[null,null,null,null,null,null,""]
[null,null,null,null,null,null,""]
[null,null,null,null,null,null,""]
[null,null,null,null,null,null,""]
[null,null,null,null,null,null,""]
[null,null,null,null,null,null,""]
[null,null,null,null,null,null,""]
[null,null,null,null,null,null,""]
[null,null,null,null,null,null,{"$f":"IF(AND(E654=\"\",F654=\"\"),\"\",G653+F654-E654)","v":""}]
[null,null,null,null,null,null,""]
[null,null,null,null,null,null,""]
[null,null,null,null,null,null,""]
[null,null,null,null,null,null,""]
[null,null,null,null,null,null,""]
[null,null,null,null,null,null,""]
[null,null,null,null,null,null,""]
[null,null,null,null,null,null,""]
[null,null,null,null,null,null,""]
[null,null,null,null,null,null,""]
[null,null,null,null,null,null,""]
[null,null,null,null,null,null,""]
[null,null,null,null,null,null,""]
[null,null,null,null,null,null,""]
[null,null,null,null,null,null,""]
[null,null,null,null,null,null,""]
[null,null,null,null,null,null,""]
[null,null,null,null,null,null,""]
[null,null,null,null,null,null,""]
[null,null,null,null,null,null,""]
[null,null,null,null,null,null,""]
[null,null,null,null,null,null,""]
[null,null,null,null,null,null,""]
[null,null,null,null,null,null,""]
[null,null,null,null,null,null,""]
[null,null,null,null,null,null,""]
[null,null,null,null,null,null,""]
[null,null,null,null,null,null,""]
[null,null,null,null,null,null,""]
[null,null,null,null,null,null,""]
[null,null,null,null,null,null,""]
[null,null,null,null,null,null,""]
[null,null,null,null,null,null,""]
[null,null,null,null,null,null,""]
[null,null,null,null,null,null,""]
[null,null,null,null,null,null,""]
[null,null,null,null,null,null,""]
[null,null,null,null,null,null,""]
[null,null,null,null,null,null,""]
[null,null,null,null,null,null,""]
[null,null,null,null,null,null,""]
[null,null,null,null,null,null,""]
[null,null,null,null,null,null,""]
[null,null,null,null,null,null,""]
[null,null,null,null,null,null,""]
[null,null,null,null,null,null,""]
[null,null,null,null,null,null,""]
[null,null,null,null,null,null,""]
[null,null,null,null,null,null,""]
[null,null,null,null,null,null,""]
[null,null,null,null,null,null,""]
[null,null,null,null,null,null,""]
[null,null,null,null,null,null,""]
[null,null,null,null,null,null,""]
[null,null,null,null,null,null,""]
[null,null,null,null,null,null,""]
[null,null,null,null,null,null,""]
[null,null,null,null,null,null,""]
[null,null,null,null,null,null,""]
[null,null,null,null,null,null,""]
[null,null,null,null,null,null,""]
[null,null,null,null,null,null,""]
[null,null,null,null,null,null,""]
[null,null,null,null,null,null,{"$f":"IF(AND(E718=\"\",F718=\"\"),\"\",G717+F718-E718)","v":""}]
[null,null,null,null,null,null,""]
[null,null,null,null,null,null,""]
[null,null,null,null,null,null,""]
[null,null,null,null,null,null,""]
[null,null,null,null,null,null,""]
[null,null,null,null,null,null,""]
[null,null,null,null,null,null,""]
[null,null,null,null,null,null,""]
[null,null,null,null,null,null,""]
[null,null,null,null,null,null,""]
[null,null,null,null,null,null,""]
[null,null,null,null,null,null,""]
[null,null,null,null,null,null,""]
[null,null,null,null,null,null,""]
[null,null,null,null,null,null,""]
[null,null,null,null,null,null,""]
[null,null,null,null,null,null,""]
[null,null,null,null,null,null,""]
[null,null,null,null,null,null,""]
[null,null,null,null,null,null,""]
[null,null,null,null,null,null,""]
[null,null,null,null,null,null,""]
[null,null,null,null,null,null,""]
[null,null,null,null,null,null,""]
[null,null,null,null,null,null,""]
[null,null,null,null,null,null,""]
[null,null,null,null,null,null,""]
[null,null,null,null,null,null,""]
[null,null,null,null,null,null,""]
[null,null,null,null,null,null,""]
[null,null,null,null,null,null,""]
[null,null,null,null,null,null,""]
[null,null,null,null,null,null,""]
[null,null,null,null,null,null,""]
[null,null,null,null,null,null,""]
[null,null,null,null,null,null,""]
[null,null,null,null,null,null,""]
[null,null,null,null,null,null,""]
[null,null,null,null,null,null,""]
[null,null,null,null,null,null,""]
[null,null,null,null,null,null,""]
[null,null,null,null,null,null,""]
[null,null,null,null,null,null,""]
[null,null,null,null,null,null,""]
[null,null,null,null,null,null,""]
[null,null,null,null,null,null,""]
[null,null,null,null,null,null,""]
[null,null,null,null,null,null,""]
[null,null,null,null,null,null,""]
[null,null,null,null,null,null,""]
[null,null,null,null,null,null,""]
[null,null,null,null,null,null,""]
[null,null,null,null,null,null,""]
[null,null,null,null,null,null,""]
[null,null,null,null,null,null,""]
[null,null,null,null,null,null,""]
[null,null,null,null,null,null,""]
[null,null,null,null,null,null,""]
[null,null,null,null,null,null,""]
[null,null,null,null,null,null,""]
[null,null,null,null,null,null,""]
[null,null,null,null,null,null,""]
[null,null,null,null,null,null,""]
[null,null,null,null,null,null,{"$f":"IF(AND(E782=\"\",F782=\"\"),\"\",G781+F782-E782)","v":""}]
[null,null,null,null,null,null,""]
[null,null,null,null,null,null,""]
[null,null,null,null,null,null,""]
[null,null,null,null,null,null,""]
[null,null,null,null,null,null,""]
[null,null,null,null,null,null,""]
[null,null,null,null,null,null,""]
[null,null,null,null,null,null,""]
[null,null,null,null,null,null,""]
[null,null,null,null,null,null,""]
[null,null,null,null,null,null,""]
[null,null,null,null,null,null,""]
[null,null,null,null,null,null,""]
[null,null,null,null,null,null,""]
[null,null,null,null,null,null,""]
[null,null,null,null,null,null,""]
[null,null,null,null,null,null,""]
[null,null,null,null,null,null,""]
[null,null,null,null,null,null,""]
[null,null,null,null,null,null,""]
[null,null,null,null,null,null,""]
[null,null,null,null,null,null,""]
[null,null,null,null,null,null,""]
[null,null,null,null,null,null,""]
[null,null,null,null,null,null,""]
[null,null,null,null,null,null,""]
[null,null,null,null,null,null,""]
[null,null,null,null,null,null,""]
[null,null,null,null,null,null,""]
[null,null,null,null,null,null,""]
[null,null,null,null,null,null,""]
[null,null,null,null,null,null,""]
[null,null,null,null,null,null,""]
[null,null,null,null,null,null,""]
[null,null,null,null,null,null,""]
[null,null,null,null,null,null,""]
[null,null,null,null,null,null,""]
[null,null,null,null,null,null,""]
[null,null,null,null,null,null,""]
[null,null,null,null,null,null,""]
[null,null,null,null,null,null,""]
[null,null,null,null,null,null,""]
[null,null,null,null,null,null,""]
[null,null,null,null,null,null,""]
[null,null,null,null,null,null,""]
[null,null,null,null,null,null,""]
[null,null,null,null,null,null,""]
[null,null,null,null,null,null,""]
[null,null,null,null,null,null,""]
[null,null,null,null,null,null,""]
[null,null,null,null,null,null,""]
[null,null,null,null,null,null,""]
[null,null,null,null,null,null,""]
[null,null,null,null,null,null,""]
[null,null,null,null,null,null,""]
[null,null,null,null,null,null,""]
[null,null,null,null,null,null,""]
[null,null,null,null,null,null,""]
[null,null,null,null,null,null,""]
[null,null,null,null,null,null,""]
[null,null,null,null,null,null,""]
[null,null,null,null,null,null,""]
[null,null,null,null,null,null,""]
[null,null,null,null,null,null,{"$f":"IF(AND(E846=\"\",F846=\"\"),\"\",G845+F846-E846)","v":""}]
[null,null,null,null,null,null,""]
[null,null,null,null,null,null,""]
[null,null,null,null,null,null,""]
[null,null,null,null,null,null,""]
[null,null,null,null,null,null,""]
[null,null,null,null,null,null,""]
[null,null,null,null,null,null,""]
[null,null,null,null,null,null,""]
[null,null,null,null,null,null,""]
[null,null,null,null,null,null,""]
[null,null,null,null,null,null,""]
[null,null,null,null,null,null,""]
[null,null,null,null,null,null,""]
[null,null,null,null,null,null,""]
[null,null,null,null,null,null,""]
[null,null,null,null,null,null,""]
[null,null,null,null,null,null,""]
[null,null,null,null,null,null,""]
[null,null,null,null,null,null,""]
[null,null,null,null,null,null,""]
[null,null,null,null,null,null,""]
[null,null,null,null,null,null,""]
[null,null,null,null,null,null,""]
[null,null,null,null,null,null,""]
[null,null,null,null,null,null,""]
[null,null,null,null,null,null,""]
[null,null,null,null,null,null,""]
[null,null,null,null,null,null,""]
[null,null,null,null,null,null,""]
[null,null,null,null,null,null,""]
[null,null,null,null,null,null,""]
[null,null,null,null,null,null,""]
[null,null,null,null,null,null,""]
[null,null,null,null,null,null,""]
[null,null,null,null,null,null,""]
[null,null,null,null,null,null,""]
[null,null,null,null,null,null,""]
[null,null,null,null,null,null,""]
[null,null,null,null,null,null,""]
[null,null,null,null,null,null,""]
[null,null,null,null,null,null,""]
[null,null,null,null,null,null,""]
[null,null,null,null,null,null,""]
[null,null,null,null,null,null,""]
[null,null,null,null,null,null,""]
[null,null,null,null,null,null,""]
[null,null,null,null,null,null,""]
[null,null,null,null,null,null,""]
[null,null,null,null,null,null,""]
[null,null,null,null,null,null,""]
[null,null,null,null,null,null,""]
[null,null,null,null,null,null,""]
[null,null,null,null,null,null,""]
[null,null,null,null,null,null,""]
[null,null,null,null,null,null,""]
[null,null,null,null,null,null,""]
[null,null,null,null,null,null,""]
[null,null,null,null,null,null,""]
[null,null,null,null,null,null,""]
[null,null,null,null,null,null,""]
[null,null,null,null,null,null,""]
[null,null,null,null,null,null,""]
[null,null,null,null,null,null,""]
[null,null,null,null,null,null,{"$f":"IF(AND(E910=\"\",F910=\"\"),\"\",G909+F910-E910)","v":""}]
[null,null,null,null,null,null,""]
[null,null,null,null,null,null,""]
[null,null,null,null,null,null,""]
[null,null,null,null,null,null,""]
[null,null,null,null,null,null,""]
[null,null,null,null,null,null,""]
[null,null,null,null,null,null,""]
[null,null,null,null,null,null,""]
[null,null,null,null,null,null,""]
[null,null,null,null,null,null,""]
[null,null,null,null,null,null,""]
[null,null,null,null,null,null,""]
[null,null,null,null,null,null,""]
[null,null,null,null,null,null,""]
[null,null,null,null,null,null,""]
[null,null,null,null,null,null,""]
[null,null,null,null,null,null,""]
[null,null,null,null,null,null,""]
[null,null,null,null,null,null,""]
[null,null,null,null,null,null,""]
[null,null,null,null,null,null,""]
[null,null,null,null,null,null,""]
[null,null,null,null,null,null,""]
[null,null,null,null,null,null,""]
[null,null,null,null,null,null,""]
[null,null,null,null,null,null,""]
[null,null,null,null,null,null,""]
[null,null,null,null,null,null,""]
[null,null,null,null,null,null,""]
[null,null,null,null,null,null,""]
[null,null,null,null,null,null,""]
[null,null,null,null,null,null,""]
[null,null,null,null,null,null,""]
[null,null,null,null,null,null,""]
[null,null,null,null,null,null,""]
[null,null,null,null,null,null,""]
[null,null,null,null,null,null,""]
[null,null,null,null,null,null,""]
[null,null,null,null,null,null,""]
[null,null,null,null,null,null,""]
[null,null,null,null,null,null,""]
[null,null,null,null,null,null,""]
[null,null,null,null,null,null,""]
[null,null,null,null,null,null,""]
[null,null,null,null,null,null,""]
[null,null,null,null,null,null,""]
[null,null,null,null,null,null,""]
[null,null,null,null,null,null,""]
[null,null,null,null,null,null,""]
[null,null,null,null,null,null,""]
[null,null,null,null,null,null,""]
[null,null,null,null,null,null,""]
[null,null,null,null,null,null,""]
[null,null,null,null,null,null,""]
[null,null,null,null,null,null,""]
[null,null,null,null,null,null,""]
[null,null,null,null,null,null,""]
[null,null,null,null,null,null,""]
[null,null,null,null,null,null,""]
[null,null,null,null,null,null,""]
[null,null,null,null,null,null,""]
[null,null,null,null,null,null,""]
[null,null,null,null,null,null,""]
[null,null,null,null,null,null,{"$f":"IF(AND(E974=\"\",F974=\"\"),\"\",G973+F974-E974)","v":""}]
[null,null,null,null,null,null,""]
[null,null,null,null,null,null,""]
[null,null,null,null,null,null,""]
[null,null,null,null,null,null,""]
[null,null,null,null,null,null,""]
[null,null,null,null,null,null,""]
[null,null,null,null,null,null,""]
[null,null,null,null,null,null,""]
[null,null,null,null,null,null,""]
[null,null,null,null,null,null,""]
[null,null,null,null,null,null,""]
[null,null,null,null,null,null,""]
[null,null,null,null,null,null,""]
[null,null,null,null,null,null,""]
[null,null,null,null,null,null,""]
[null,null,null,null,null,null,""]
[null,null,null,null,null,null,""]
[null,null,null,null,null,null,""]
[null,null,null,null,null,null,""]
[null,null,null,null,null,null,""]
[null,null,null,null,null,null,""]
[null,null,null,null,null,null,""]
[null,null,null,null,null,null,""]
[null,null,null,null,null,null,""]
[null,null,null,null,null,null,""]
[null,null,null,null,null,null,""]
[null,null,null,null,null,null,""]
[null,null,null,null,null,null,""]
[null,null,null,null,null,null,""]
[null,null,null,null,null,null,""]
[null,null,null,null,null,null,""]
[null,null,null,null,null,null,""]
[null,null,null,null,null,null,""]
[null,null,null,null,null,null,""]
[null,null,null,null,null,null,""]
[null,null,null,null,null,null,""]
[null,null,null,null,null,null,""]
[null,null,null,null,null,null,""]
[null,null,null,null,null,null,""]
[null,null,null,null,null,null,""]
[null,null,null,null,null,null,""]
[null,null,null,null,null,null,""]
[null,null,null,null,null,null,""]
[null,null,null,null,null,null,""]
[null,null,null,null,null,null,""]
[null,null,null,null,null,null,""]
[null,null,null,null,null,null,""]
[null,null,null,null,null,null,""]
[null,null,null,null,null,null,""]
[null,null,null,null,null,null,""]
[null,null,null,null,null,null,""]
[null,null,null,null,null,null,""]
[null,null,null,null,null,null,""]
[null,null,null,null,null,null,""]
[null,null,null,null,null,null,""]
[null,null,null,null,null,null,""]
[null,null,null,null,null,null,""]
[null,null,null,null,null,null,""]
[null,null,null,null,null,null,""]
[null,null,null,null,null,null,""]
[null,null,null,null,null,null,""]
[null,null,null,null,null,null,""]
[null,null,null,null,null,null,""]
[null,null,null,null,null,null,{"$f":"IF(AND(E1038=\"\",F1038=\"\"),\"\",G1037+F1038-E1038)","v":""}]
[null,null,null,null,null,null,""]
[null,null,null,null,null,null,""]
[null,null,null,null,null,null,""]
[null,null,null,null,null,null,""]
[null,null,null,null,null,null,""]
[null,null,null,null,null,null,""]
[null,null,null,null,null,null,""]
[null,null,null,null,null,null,""]
[null,null,null,null,null,null,""]
[null,null,null,null,null,null,""]
[null,null,null,null,null,null,""]
[null,null,null,null,null,null,""]
[null,null,null,null,null,null,""]
[null,null,null,null,null,null,""]
[null,null,null,null,null,null,""]
[null,null,null,null,null,null,""]
[null,null,null,null,null,null,""]
[null,null,null,null,null,null,""]
[null,null,null,null,null,null,""]
[null,null,null,null,null,null,""]
[null,null,null,null,null,null,""]
[null,null,null,null,null,null,""]
[null,null,null,null,null,null,""]
[null,null,null,null,null,null,""]
[null,null,null,null,null,null,""]
[null,null,null,null,null,null,""]

{"sheet":"Rep1","index":2,"n_rows":5,"n_cols":6,"rows_kept":5,"cut":false,"hidden":true,"merged":[[2,0,2,5]]}
[null,null,null,null,"التاريخ :-",{"$f":"TODAY()","v":"2017-03-10"}]
[null,null,null,null,"الموافق :-",{"$f":"TEXT(TODAY(),\"b2YYYY/mM/dD\")","v":"1438/06/12"}]
[]
["مسلسل","أسم المستأجر","جهة العمل / الكفيل","الشقة","وصف الشقة","الجوال"]
[{"$f":"TEXT(IF($B5=\"\",\"\",ROW()-5),\"00\")","v":"00"},"محمد عبدالله",1,1,"شقة 1 مبني 2",15000]

{"sheet":"Rep2","index":3,"n_rows":5,"n_cols":5,"rows_kept":5,"cut":false,"hidden":true,"merged":[[2,0,2,4]]}
[null,null,null,"التاريخ :-",{"$f":"TODAY()","v":"2017-03-10"}]
[null,null,null,"الموافق :-",{"$f":"TEXT(TODAY(),\"b2YYYY/mM/dD\")","v":"1438/06/12"}]
[]
["مسلسل","أسم المستأجر","تاريخ الأستحقاق هـ","تاريخ الأستحقاق ميلادي","قيمة الأيجار"]
[{"$f":"TEXT(IF($B5=\"\",\"\",ROW()-5),\"00\")","v":"00"},"محمد عبدالله",{"$f":"IF(D5<>\"\",TEXT(D5,\"b2YYYY/mM/dD\"),\"\")","v":"1435/01/29"},"2013-12-02",15000]

{"sheet":"Rep3","index":4,"n_rows":5,"n_cols":7,"rows_kept":5,"cut":false,"hidden":true,"merged":[[2,0,2,5]]}
[null,null,null,null,null,"التاريخ :-",{"$f":"TODAY()","v":"2017-03-10"}]
[null,null,null,null,null,"الموافق :-",{"$f":"TEXT(TODAY(),\"b2YYYY/mM/dD\")","v":"1438/06/12"}]
[]
["مسلسل","التاريخ","رقم السند","نوع السند","البيان","مدين","دائن"]
[{"$f":"TEXT(IF($B5=\"\",\"\",ROW()-5),\"00\")","v":"00"},"2013-12-02",250,"نقدي",null,1500.5550000000001]

{"sheet":"reb4","index":5,"n_rows":5,"n_cols":7,"rows_kept":5,"cut":false,"hidden":true,"merged":[[2,0,2,5]]}
[null,null,null,null,null,"التاريخ :-",{"$f":"TODAY()","v":"2017-03-10"}]
[null,null,null,null,null,"الموافق :-",{"$f":"TEXT(TODAY(),\"b2YYYY/mM/dD\")","v":"1438/06/12"}]
[]
["مسلسل","التاريخ","رقم السند","نوع السند","البيان","مدين","دائن"]
[{"$f":"TEXT(IF($B5=\"\",\"\",ROW()-5),\"00\")","v":"00"},"2013-12-02",250,"نقدي",null,1500.5550000000001]

{"sheet":"Contract","index":6,"n_rows":39,"n_cols":16,"rows_kept":39,"cut":false,"hidden":true,"merged":[[28,0,28,6],[29,0,29,6],[15,1,15,4],[16,0,16,1],[9,0,9,6],[10,0,10,1],[13,0,13,1],[11,3,11,4],[27,0,27,6],[12,2,12,3],[12,4,12,6],[17,3,17,4],[18,3,18,6],[20,0,20,1],[22,0,22,6],[23,0,23,6],[24,0,24,6],[25,0,25,6],[26,0,26,6],[19,2,19,4],[21,0,21,1],[30,0,30,6],[31,0,31,6],[37,0,37,1],[38,0,38,1],[37,3,37,6],[38,3,38,6],[33,0,33,6],[35,0,35,6],[34,0,34,1],[34,2,34,3],[34,4,34,5],[32,0,32,6]]}
[null,null,null,null,null,null,null,null,null,null,null,null,null,{"$f":"IF($G$9<>\"\",VLOOKUP($G$9,DATA,14,0),\"\")","v":"2010-01-16"},{"$f":"DATE(YEAR(N1)+1,MONTH(N1),DAY(N1)-12)","v":"2011-01-04"},{"$f":"IF($G$9<>\"\",VLOOKUP($G$9,DATA,12,0),\"\")","v":"ربع سنوي"}]
[]
[]
[]
[]
[]
[]
[]
[null,null,null,null,null,"رقم العقد",103]
[{"$f":"CONCATENATE(\" تحرر العقد في يوم  \",TEXT(TODAY(),\"B2DDDD\"),\" بتــاريخ  \",TEXT(TODAY(),\"YYYY/M/D\"),\" م\",,\" المــوافق  \",TEXT(TODAY(),\"b2YYYY/M/D\"),\"هـ\")&\"  بين كل من  \"","v":" تحرر العقد في يوم  الجمعة بتــاريخ  2017/3/10 م المــوافق  1438/6/12هـ  بين كل من  "}]
["الطرف الأول :- المستأجر"]
["أسم المستأجر",{"$f":"IF($G$9<>\"\",VLOOKUP($G$9,DATA,2,0),\"\")","v":"معلمنا /عبدالله باقشير"},"الجنسية",{"$f":"IF($G$9<>\"\",VLOOKUP($G$9,DATA,5,0),\"\")","v":"اليمن"},null,"تليفون:- ",{"$f":"IF($G$9<>\"\",VLOOKUP($G$9,DATA,9,0),\"\")","v":501234569}]
["جهة العمل / الكفيل",{"$f":"IF($G$9<>\"\",VLOOKUP($G$9,DATA,4,0),\"\")","v":"أوفيسنا"},"رقم الهوية / الأقامة",null,{"$f":"IF($G$9<>\"\",VLOOKUP($G$9,DATA,3,0),\"\")","v":1234567892}]
["الطرف الثاني :- المؤجر"]
["أسم المالك","منتديات اوفيسنا التعليمية",null,null,null,"تليفون:- ",{"$f":"IF($G$9<>\"\",VLOOKUP($G$9,DATA,8,0),\"\")","v":"الدور ( 3 ) مبنى رقم ( 2 )"}]
["العنوان","المركز الرئيسي - الشارع العام - مدينة اوفيسنا التعليمية",null,null,null,"رقم الهوية:-",12345678950]
["محل / شقة/ غرفة /عمارة / فيلا/ غير ذلك اذكرها",null,{"$f":"IF($G$9<>\"\",VLOOKUP($G$9,DATA,6,0),\"\")","v":"شقة"},"رقم :- ",{"$f":"IF($G$9<>\"\",VLOOKUP($G$9,DATA,7,0),\"\")","v":10},"العنوان :- ",{"$f":"IF($G$9<>\"\",VLOOKUP($G$9,DATA,8,0),\"\")","v":"الدور ( 3 ) مبنى رقم ( 2 )"}]
["مدة الأيجار","سنة","يبدا في :- ",{"$f":"IF($N$1<>\"\",TEXT($N$1,\"b2YYYY/mM/dD\"),\"\")","v":"1431/02/01"},null,"وينتهي في :- ",{"$f":"IF($O$1<>\"\",TEXT($O$1,\"b2YYYY/mM/dD\"),\"\")","v":"1432/01/29"}]
["مبلغ الايجار السنوي",{"$f":"IF($G$9<>\"\",VLOOKUP($G$9,DATA,10,0),\"\")","v":25000},"مبلغ وقدره",{"$f":"NoToTxt(B19, \" ريال\",\" هللة\")","v":"فقط خمسة وعشرون ألف  ريال لا غير"}]
["كيفية الدفع",{"$f":"IF($P$1<>\"\",IF($P$1=\"شهري\",\"يدفع كل شهر\",IF($P$1=\"ربع سنوي\",\"يدفع كل ثلاثة شهور\",IF($P$1=\"نصف سنوي\",\"يدفع كل سنة شهور\"))),\"\")","v":"يدفع كل ثلاثة شهور"},"قيمة الايجار حسب طريقة الدفع",null,null,{"$f":"IF($G$9<>\"\",VLOOKUP($G$9,DATA,13,0),\"\")","v":6250},"ريال"]
["قراءة عداد الكهرباء عند دخول المستأجر",null,"كيلوات",null,"عداد المياه"]
["وقد اتفق الطرفان علي الشروط التالية :-"]
["1- عقد الأيجار يحدد كعقد مستقل من المدة الأولي ولا يسري لأكثر من المدة الإيجارية المحدده أعلاه ، يتجدد العقد  تلقائيا مالم يخطر أحد الطرفين الأخر بعدم الرغبة في التجديد قبل انتهاء العقد بشهرين ."]
["2- الأيجار المتفق عليه هو ايجار ثابت حتي مدة انتهاء العقد المحددة اعلاه فقط ."]
["3- لا يحق للمستاجر أعادة تأجير الوحدة محل العقد او جزءاً منها لشخص اخر او التنازل عن الأيجار أو المكان لغيره الا بعد موافقة كتابية من المالك أو من ينوب عنه."]
["4- جميع استهلاكات الكهرباء والمياه والتليفون إن وجد علي المستأجر بموجب قراءة العدادات إن وجدت أو التقدير المناسب إن لم تكن موجودة"]
["5- كل حدث او تغيير يحدثه المستأجر من تكسير او تخريب في الوحدة المؤجرة محل هذا العقد فانه ملزم باصلاح هذا الحدث او دفع تكاليف اصلاحه."]
["6- عند غياب او سفر المستأجر لفترة محددة يجب أشعار المؤجر او من ينوب عليه تفاديا لما يحدث من تضرر اثناء غيابه ."]
["7- من حق المالك انهاء العقد في حالة تاخر المستأجر عن سداد قيمة الأيجار المتفق عليها وفي المواعيد المحددة أو عدم محافظته علي الوحدة المؤجرة له."]
["8- لا يحق للمستاجر مطالبة المؤجر باي تكاليف مقابل تحسينات او اصلاحات نتيجة استخدامه للوحدة المؤجرة له ."]
["9- لا يحق للمستاجر التغيير في الوحدة المؤجرة له مما يؤثر علي سلامة العقار او يتسبب في ايذاء للجيران ."]
["10- رسوم نظافة المدخل والسلم واستهلاك الكهرباء والمياه والبلدية علي حساب المستأجر."]
["11- المالك والمستأجر ملزمان بما جاء في هذا العقد بعد التوقيع عليه ."]
["12- حرر هذا العقد من نسختين نسخة للمالك واخري للمستأجر."]
["ملاحظات :-"]
[]
[]
["المستأجر",null,null,"المالك/ الوكيل"]
[{"$f":"B12","v":"معلمنا /عبدالله باقشير"}]